bitfinex-derivatives/quotes_SOLF0:USTF0_20250105
["timestamp","ask_amount","ask_price","bid_price","bid_amount"]
[1736079512951,3.5084011,214.01,213.84,2.9]
[1736079513146,1.4624,214.01,213.84,2.9]
[1736079513354,2.3377,213.96,213.91,2.3381]
[1736079513947,1.4624,214.01,213.92,2.3381]
[1736079513948,2.3376,213.97,213.92,2.3381]
[1736079514348,1.4624,214.01,213.92,2.3381]
[1736079515054,1.4624,214.01,213.9,2.9]
[1736079515258,2.3372,214.0,213.9,2.9]
[1736079515451,9.71265437,214.1,213.9,2.9]
[1736079515751,2.3367,214.05,213.97,2.3374]
[1736079515951,4.3035,214.1,213.97,5.2374]
[1736079516149,7.2035,214.1,213.97,5.2374]
[1736079516853,7.2035,214.1,213.97,2.3374]
[1736079517051,0.75720833,214.09,213.97,5.2374]
[1736079517450,2.3369,214.04,213.97,5.2374]
[1736079519451,2.3369,214.04,213.98,2.3374]
[1736079520854,2.337,214.02,213.97,2.9]
[1736079521053,2.337,214.02,213.96,2.3375]
[1736079521254,2.337,214.02,213.96,2.9]
[1736079521557,7.2035,214.1,213.96,2.9]
[1736079521948,2.3365,214.07,214.01,2.337]
[1736079522149,4.3035,214.1,213.98,2.9]
[1736079522655,4.3035,214.1,213.99,2.3373]
[1736079523557,2.3367,214.05,213.99,2.3373]
[1736079524560,2.3369,214.03,213.98,2.9]
[1736079524753,2.3369,214.03,213.97,5.2975]
[1736079525757,2.3365,214.07,214.01,2.337]
[1736079526160,4.3035,214.1,213.97,2.96]
[1736079526352,2.3366,214.06,214.0,2.3372]
[1736079526549,2.3366,214.06,213.97,2.96]
[1736079526850,4.3035,214.1,213.97,5.2975]
[1736079526851,2.3369,214.03,213.97,5.2975]
[1736079528257,4.3035,214.1,213.97,2.96]
[1736079528458,4.3035,214.1,214.0,2.3372]
[1736079529157,2.3366,214.06,214.0,2.3372]
[1736079529361,2.3366,214.06,214.01,2.3371]
[1736079530352,4.3035,214.1,214.01,2.3371]
[1736079530558,2.3365,214.07,214.01,2.3371]
[1736079530753,4.3035,214.1,214.03,2.3368]
[1736079531150,2.3363,214.09,213.97,2.96]
[1736079531349,2.3363,214.09,214.03,2.3368]
[1736079532858,4.3035,214.1,214.03,2.3368]
[1736079533061,2.3363,214.08,214.03,2.3368]
[1736079533259,4.3035,214.1,214.01,2.337]
[1736079533956,2.3365,214.07,214.02,2.3369]
[1736079534457,4.3035,214.1,213.97,2.96]
[1736079535160,2.3368,214.05,213.99,2.3373]
[1736079536958,2.3368,214.04,213.99,2.3373]
[1736079538263,2.3368,214.04,213.97,2.96]
[1736079538464,2.3368,214.04,214.0,2.3372]
[1736079539662,4.3035,214.1,213.97,2.96]
[1736079540460,1.4135,214.1,213.97,2.96]
[1736079541060,2.3363,214.09,214.0,2.3371]
[1736079541264,2.3363,214.09,213.97,2.96]
[1736079541762,2.3363,214.09,214.04,2.3367]
[1736079541963,2.3363,214.09,214.04,5.2967]
[1736079543064,2.3359,214.12,214.07,2.3364]
[1736079543264,1.3918,214.16,214.07,2.3364]
[1736079544262,2.3359,214.13,214.07,2.3364]
[1736079544858,1.3918,214.16,214.07,2.3364]
[1736079545063,2.3359,214.12,214.07,2.3364]
[1736079545565,1.3918,214.16,214.04,2.96]
[1736079545958,1.3918,214.16,214.05,2.96]
[1736079548366,2.3362,214.1,214.05,2.96]
[1736079548666,1.3918,214.16,214.05,2.96]
[1736079548965,2.3363,214.09,214.05,2.96]
[1736079550157,1.3918,214.16,214.05,2.96]
[1736079550357,1.3918,214.16,214.01,6.7504844]
[1736079550560,0.75739867,214.15,214.01,9.7104844]
[1736079550963,2.336,214.11,214.01,9.7104844]
[1736079551264,5.8697,214.1,214.01,9.7104844]
[1736079551574,2.3364,214.08,214.01,9.7104844]
[1736079551866,5.8697,214.1,214.01,9.7104844]
[1736079552261,2.96,214.1,214.01,9.7104844]
[1736079552566,2.96,214.14,214.01,9.7104844]
[1736079552966,2.3365,214.07,214.01,9.7104844]
[1736079553767,2.3365,214.07,214.02,2.337]
[1736079554063,2.96,214.14,214.01,9.7104844]
[1736079554368,2.96,214.14,214.03,2.3368]
[1736079555169,2.907,214.15,214.04,2.3367]
[1736079555867,2.3361,214.11,214.01,9.7104844]
[1736079556671,2.3359,214.12,214.01,9.7104844]
[1736079556869,2.3359,214.12,214.04,2.3367]
[1736079557169,2.907,214.15,214.01,9.7104844]
[1736079557471,2.336,214.11,214.06,2.3365]
[1736079557970,2.907,214.15,214.06,2.3365]
[1736079558171,2.3359,214.12,214.06,2.3365]
[1736079559269,3.50573668,214.19,214.07,2.92]
[1736079559461,3.0156,214.25,214.08,2.92]
[1736079559665,3.67726348,214.24,214.09,2.92]
[1736079559969,0.75726348,214.23,214.09,2.92]
[1736079560170,2.3352,214.19,214.11,2.336]
[1736079560470,11.26351577,214.24,214.09,2.92]
[1736079560772,2.3353,214.18,214.12,2.3359]
[1736079560969,3.0156,214.25,214.12,2.3359]
[1736079561168,3.67704586,214.24,214.12,2.3359]
[1736079561368,2.92,214.24,214.09,2.92]
[1736079561970,2.3355,214.16,214.1,2.336]
[1736079562273,2.92,214.24,214.09,2.92]
[1736079562473,2.92,214.24,214.05,6.51593669]
[1736079562671,2.92,214.24,214.06,2.92]
[1736079563363,2.3355,214.16,214.06,2.92]
[1736079564268,6.52026235,214.25,214.06,2.92]
[1736079564473,3.0156,214.25,214.06,2.92]
[1736079565168,2.3351,214.2,214.13,2.3357]
[1736079565368,2.3351,214.2,214.14,2.92]
[1736079566071,3.0156,214.25,214.14,2.92]
[1736079566272,0.75705547,214.24,214.14,2.92]
[1736079566566,3.0156,214.25,214.14,2.92]
[1736079567072,5.9356,214.25,214.14,2.92]
[1736079567467,5.9356,214.25,214.09,2.3361]
[1736079567671,5.9356,214.25,214.1,2.92]
[1736079569171,2.3355,214.16,214.1,2.92]
[1736079569574,2.3355,214.16,214.11,2.92]
[1736079573383,2.3355,214.16,214.11,5.256]
[1736079577283,2.92,214.24,214.11,2.92]
[1736079577885,2.3351,214.2,214.15,2.3356]
[1736079578484,3.0156,214.25,214.11,2.92]
[1736079578793,2.3349,214.21,214.15,2.3356]
[1736079579493,2.3349,214.21,214.16,2.3354]
[1736079581193,2.3351,214.2,214.14,2.3356]
[1736079582091,3.0156,214.25,214.14,2.3356]
[1736079582291,2.3352,214.19,214.13,2.3358]
[1736079582893,3.0156,214.25,214.11,2.92]
[1736079583094,2.3354,214.17,214.11,2.92]
[1736079583294,2.3354,214.17,214.12,2.92]
[1736079583995,3.0156,214.25,214.12,2.92]
[1736079584191,2.3352,214.19,214.12,2.92]
[1736079584397,2.3352,214.19,214.13,2.3357]
[1736079584993,3.0156,214.25,214.13,2.3357]
[1736079585190,2.3354,214.17,214.12,5.2559]
[1736079588505,2.3355,214.16,214.12,5.2559]
[1736079588700,3.0156,214.25,214.07,73.44885994]
[1736079588904,0.75704035,214.24,214.08,2.86]
[1736079589105,2.3358,214.13,214.08,2.86]
[1736079589406,2.86,214.19,214.07,72.15462363]
[1736079589703,2.3359,214.12,214.07,69.81822363]
[1736079589897,4.3118,214.18,214.07,69.81822363]
[1736079590294,2.3356,214.15,214.07,69.81822363]
[1736079590593,4.3118,214.18,214.07,69.81822363]
[1736079590793,4.3118,214.18,214.04,8.82743631]
[1736079590996,4.3118,214.18,214.04,11.68743631]
[1736079591302,4.3118,214.18,214.04,6.49063631]
[1736079591503,4.3118,214.18,214.03,2.86]
[1736079591896,0.75725513,214.17,214.03,2.86]
[1736079592409,4.3118,214.18,214.03,2.86]
[1736079592605,0.75731242,214.17,214.01,18.43812071]
[1736079592803,0.75731242,214.17,214.01,11.9474844]
[1736079593201,7.81620192,214.18,214.01,11.9474844]
[1736079593407,0.75730948,214.17,214.01,11.9474844]
[1736079593611,2.3365,214.08,214.01,11.9474844]
[1736079593805,2.86,214.13,214.01,11.9474844]
[1736079595005,2.3365,214.07,214.01,11.9474844]
[1736079595407,2.86,214.13,214.01,11.9474844]
[1736079596011,2.86,214.13,214.01,9.6104844]
[1736079596211,2.3366,214.06,214.01,9.6104844]
[1736079597511,2.86,214.13,214.01,9.6104844]
[1736079597701,2.86,214.15,214.01,9.6104844]
[1736079597903,4.3118,214.18,214.06,2.3365]
[1736079598107,7.1718,214.18,214.01,9.6104844]
[1736079598313,7.1718,214.18,214.02,1.4906]
[1736079598504,7.1718,214.18,214.06,2.3365]
[1736079598705,2.3359,214.13,214.06,5.1965]
[1736079599215,2.3359,214.13,214.06,2.86]
[1736079599413,2.3359,214.13,214.07,2.3364]
[1736079599813,7.1718,214.18,214.06,2.86]
[1736079600012,2.3357,214.14,214.08,2.3363]
[1736079601418,2.3358,214.13,214.07,2.3364]
[1736079601814,4.3118,214.18,214.06,2.86]
[1736079602116,2.336,214.11,214.06,2.86]
[1736079604222,4.3118,214.18,214.06,2.86]
[1736079605020,2.3361,214.1,214.06,2.86]
[1736079610529,2.3361,214.1,214.05,5.1967]
[1736079611522,2.3363,214.09,214.05,5.1967]
[1736079611722,2.86,214.16,214.02,1.4906]
[1736079611923,2.86,214.16,214.03,2.86]
[1736079612122,2.3359,214.13,214.03,2.86]
[1736079612325,2.86,214.16,214.01,9.6104844]
[1736079613024,2.3369,214.04,214.01,6.7504844]
[1736079613424,2.86,214.11,213.98,6.49063631]
[1736079613623,2.3369,214.03,213.98,9.35063631]
[1736079614326,4.3606,214.1,213.98,2.86]
[1736079614327,2.3371,214.02,213.98,2.86]
[1736079616222,2.3371,214.02,213.96,68.66976385]
[1736079616528,2.3371,214.02,213.97,2.3375]
[1736079617125,2.3369,214.04,213.96,68.66976385]
[1736079617424,4.3606,214.1,213.96,68.66976385]
[1736079617620,2.3367,214.05,214.0,2.3372]
[1736079617929,2.3367,214.05,213.96,68.66976385]
[1736079618332,2.3365,214.07,213.96,68.66976385]
[1736079618535,7.1606,214.1,213.96,68.66976385]
[1736079619031,2.3364,214.08,213.96,68.66976385]
[1736079619428,2.3364,214.08,214.02,2.337]
[1736079620028,2.3365,214.07,214.01,2.3371]
[1736079620234,4.3606,214.1,214.0,2.8]
[1736079621030,2.3367,214.06,214.0,5.1372]
[1736079621333,4.3606,214.1,213.98,9.29063631]
[1736079621630,4.3606,214.1,213.98,2.8]
[1736079621823,4.3606,214.1,213.99,2.3373]
[1736079622028,4.3606,214.1,213.96,77.96040016]
[1736079622223,4.3606,214.1,213.96,71.46976385]
[1736079622424,4.3606,214.1,213.98,2.3373]
[1736079623134,4.3606,214.1,213.96,77.96040016]
[1736079623435,2.3368,214.05,213.99,2.3373]
[1736079624440,4.3606,214.1,213.96,77.96040016]
[1736079624641,4.3606,214.1,213.97,2.3374]
[1736079625039,4.3606,214.1,213.97,6.82304343]
[1736079625241,2.3369,214.03,213.97,6.82304343]
[1736079626037,2.3368,214.04,213.99,2.3373]
[1736079634442,2.3368,214.04,213.96,71.46976385]
[1736079634637,2.3368,214.04,214.0,2.3372]
[1736079635035,2.8,214.09,213.96,71.46976385]
[1736079635347,2.3369,214.03,213.98,2.3374]
[1736079636541,2.3369,214.03,213.99,2.3373]
[1736079640447,2.3371,214.01,213.97,2.3375]
[1736079640642,2.8,214.09,213.96,71.46976385]
[1736079642342,2.8,214.09,213.97,2.3375]
[1736079642850,2.337,214.03,213.97,2.3375]
[1736079643443,2.337,214.03,213.98,2.3374]
[1736079649649,2.8,214.09,213.97,25.96254524]
[1736079649845,2.337,214.02,213.97,28.30004524]
[1736079650754,2.337,214.02,213.97,2.3375]
[1736079651353,2.337,214.02,213.97,8.82813631]
[1736079653151,2.8,214.09,213.97,6.49063631]
[1736079653353,2.3371,214.01,213.97,6.49063631]
[1736079653752,2.8,214.09,213.97,6.49063631]
[1736079653958,2.3373,214.0,213.97,6.49063631]
[1736079654755,2.3373,214.0,213.96,68.66976385]
[1736079654959,6.22450518,214.07,213.95,7.00152934]
[1736079655254,3.50657548,214.07,213.95,7.00152934]
[1736079655958,2.3375,213.98,213.95,7.00152934]
[1736079656561,2.3376,213.97,213.94,6.49063631]
[1736079656763,4.4193,214.02,213.94,6.49063631]
[1736079657159,2.3378,213.95,213.94,6.49063631]
[1736079657961,2.76,213.98,213.89,25.96254524]
[1736079658757,2.76,213.98,213.88,6.49063631]
[1736079659163,2.3378,213.95,213.88,6.49063631]
[1736079659357,2.76,213.98,213.88,6.49063631]
[1736079659764,2.76,213.98,213.86,9.25063631]
[1736079660459,2.76,213.98,213.86,2.76]
[1736079660659,2.3379,213.94,213.86,2.76]
[1736079661458,2.3379,213.94,213.88,2.3385]
[1736079662565,2.338,213.93,213.86,5.0986]
[1736079662867,2.338,213.93,213.86,2.76]
[1736079664562,2.338,213.93,213.88,2.3385]
[1736079667561,2.3381,213.92,213.87,2.3386]
[1736079669561,2.76,213.98,213.87,2.3386]
[1736079669760,2.3384,213.9,213.85,2.3388]
[1736079670270,2.3385,213.89,213.84,2.339]
[1736079671368,2.3385,213.88,213.84,2.339]
[1736079673764,2.76,213.93,213.81,2.76]
[1736079673969,2.3383,213.9,213.81,2.76]
[1736079674468,2.3382,213.92,213.87,2.3385]
[1736079674672,2.3382,213.92,213.81,10.18161599]
[1736079674972,2.3382,213.92,213.88,2.3385]
[1736079676177,2.3382,213.92,213.87,2.3386]
[1736079677175,2.7,213.96,213.87,2.3386]
[1736079677176,2.3382,213.91,213.87,2.3386]
[1736079678877,4.3046,213.95,213.87,2.3386]
[1736079679075,2.3381,213.92,213.87,2.3386]
[1736079680475,2.3381,213.92,213.81,10.18161599]
[1736079680476,2.338,213.94,213.89,2.3384]
[1736079681174,4.3046,213.95,213.81,10.18161599]
[1736079681374,3.7258,213.95,213.9,2.3383]
[1736079683588,3.7258,213.95,213.86,2.7]
[1736079683783,2.3379,213.94,213.89,2.3384]
[1736079685481,2.8814,214.02,213.86,2.7]
[1736079685683,2.8814,214.02,213.95,2.3378]
[1736079685879,2.8814,214.02,213.93,2.7]
[1736079686684,2.3373,214.0,213.94,2.3378]
[1736079686881,2.3373,214.0,213.93,2.7]
[1736079687082,1.4831,214.02,213.93,2.7]
[1736079687286,2.3371,214.01,213.95,2.3377]
[1736079687483,2.3371,214.01,213.93,2.7]
[1736079688584,2.3371,214.01,213.96,2.3376]
[1736079688888,2.3371,214.01,213.93,2.7]
[1736079689189,2.3372,214.0,213.95,2.3378]
[1736079690285,2.3372,214.0,213.94,2.3379]
[1736079691090,2.3372,214.0,213.95,2.3377]
[1736079691284,1.3921,214.04,213.93,2.7]
[1736079691480,1.4148,214.11,213.93,2.7]
[1736079691481,4.1867,214.1,213.93,2.7]
[1736079691688,2.3364,214.08,214.02,2.337]
[1736079691886,2.983,214.1,214.0,2.7]
[1736079692485,2.3366,214.06,214.0,5.0372]
[1736079693591,2.3367,214.05,214.0,2.7]
[1736079693791,2.983,214.1,214.0,2.7]
[1736079694095,2.3371,214.01,214.0,2.7]
[1736079696685,2.3371,214.01,213.97,2.7]
[1736079699487,2.3371,214.01,213.97,5.0375]
[1736079703400,2.3369,214.04,213.99,2.3373]
[1736079703595,2.3369,214.04,213.97,2.7]
[1736079703994,2.3369,214.04,213.99,2.3372]
[1736079705993,2.3367,214.05,213.99,2.3372]
[1736079707699,2.3367,214.05,214.0,2.3372]
[1736079710599,2.983,214.1,213.97,2.7]
[1736079710790,2.983,214.1,213.94,1.3725]
[1736079710990,2.983,214.1,213.95,2.68]
[1736079712399,2.983,214.1,213.97,2.3375]
[1736079713802,2.3368,214.04,213.97,2.3375]
[1736079714002,2.983,214.1,213.97,5.0175]
[1736079715399,2.337,214.02,213.97,5.0175]
[1736079716098,2.3369,214.03,213.93,73.02428411]
[1736079716401,2.983,214.1,213.95,2.3378]
[1736079716602,2.68,214.06,213.95,2.3378]
[1736079717397,2.3372,214.01,213.95,2.3378]
[1736079717903,2.68,214.06,213.98,2.3374]
[1736079718103,2.337,214.03,213.98,2.3374]
[1736079720400,2.68,214.09,213.94,2.68]
[1736079720802,2.68,214.09,213.96,2.3376]
[1736079720803,2.3371,214.02,213.96,2.3376]
[1736079721602,2.3372,214.01,213.96,2.3376]
[1736079722411,2.3372,214.01,213.94,2.68]
[1736079722614,2.3372,214.01,213.95,2.3377]
[1736079724213,2.68,214.09,213.95,2.3377]
[1736079724412,2.68,214.09,213.93,75.70428411]
[1736079724607,0.75768287,214.06,213.93,75.70428411]
[1736079724914,2.3376,213.97,213.93,75.70428411]
[1736079725509,2.3377,213.96,213.93,73.02428411]
[1736079725705,2.68,213.97,213.85,25.96254524]
[1736079725913,2.68,213.97,213.85,28.64254524]
[1736079726114,2.3383,213.91,213.85,28.64254524]
[1736079726620,2.3383,213.91,213.85,2.68]
[1736079727514,2.3383,213.91,213.85,5.0188]
[1736079728308,7.90391763,214.02,213.85,2.68]
[1736079728513,2.338,213.94,213.88,2.3385]
[1736079730220,2.3377,213.96,213.9,2.3382]
[1736079730516,2.3377,213.96,213.9,2.68]
[1736079730909,2.3377,213.96,213.91,2.3382]
[1736079732611,2.3375,213.98,213.93,2.338]
[1736079732816,4.3957,214.02,213.9,2.68]
[1736079733309,2.3372,214.0,213.93,2.3379]
[1736079733515,2.3372,214.0,213.9,2.68]
[1736079733914,4.3957,214.02,213.94,2.3378]
[1736079734114,2.3376,213.97,213.9,2.68]
[1736079734317,4.3957,214.02,213.9,2.68]
[1736079734517,4.3957,214.02,213.92,2.3381]
[1736079734718,4.3957,214.02,213.9,2.68]
[1736079735708,4.3957,214.02,213.89,4.9984]
[1736079736121,2.3378,213.95,213.89,4.9984]
[1736079737521,2.3378,213.95,213.9,2.3383]
[1736079754524,2.3376,213.97,213.92,2.3381]
[1736079756730,2.3377,213.96,213.91,2.3382]
[1736079762841,2.3378,213.95,213.9,2.3383]
[1736079763637,2.3378,213.95,213.89,4.9984]
[1736079771145,2.3379,213.94,213.89,4.9984]
[1736079772140,2.3379,213.94,213.9,2.3383]
[1736079780452,11.89499796,214.01,213.89,2.66]
[1736079780642,18.1340547,214.01,213.89,2.66]
[1736079780847,3.50780403,214.0,213.89,2.66]
[1736079781049,3.50780403,214.0,213.84,6.49063631]
[1736079781248,3.50780403,214.0,213.87,2.3386]
[1736079782252,2.3382,213.91,213.86,2.3387]
[1736079782553,2.66,213.97,213.85,2.66]
[1736079782950,6.16780403,213.97,213.85,2.66]
[1736079783145,2.66,213.97,213.85,2.66]
[1736079783455,2.3384,213.9,213.85,2.66]
[1736079784455,2.3382,213.91,213.86,2.3387]
[1736079786356,2.3382,213.91,213.87,2.3385]
[1736079789058,2.3382,213.91,213.88,2.3385]
[1736079790555,2.3382,213.91,213.84,2.66]
[1736079790759,2.3382,213.91,213.86,2.3387]
[1736079792658,2.3382,213.91,213.87,2.3386]
[1736079796564,2.66,213.97,213.84,2.66]
[1736079797167,2.3378,213.95,213.9,2.3382]
[1736079800062,50.91148805,213.99,213.84,2.66]
[1736079800262,2.3376,213.97,213.92,2.3381]
[1736079800766,2.3376,213.97,213.91,2.3382]
[1736079800969,53.57148805,213.99,213.91,2.3382]
[1736079801169,50.91148805,213.99,213.91,2.3382]
[1736079801765,53.57148805,213.99,213.91,2.3382]
[1736079801960,53.57148805,213.99,213.89,2.66]
[1736079802579,53.57148805,213.99,213.85,2.66]
[1736079803461,2.3381,213.93,213.88,2.3385]
[1736079816184,2.3381,213.92,213.88,2.3385]
[1736079825789,2.3381,213.92,213.86,4.9986]
[1736079825991,2.3381,213.92,213.86,2.66]
[1736079827489,2.3381,213.92,213.87,2.3386]
[1736079835600,2.3381,213.92,213.88,2.3385]
[1736079837304,2.3383,213.91,213.86,76.58417967]
[1736079837495,2.66,213.97,213.86,74.24547967]
[1736079838402,2.3381,213.92,213.87,2.3386]
[1736079840000,2.66,213.97,213.87,2.3386]
[1736079840501,6.16841064,213.97,213.86,74.24547967]
[1736079840698,12.39291272,213.97,213.86,74.24547967]
[1736079841701,2.3386,213.88,213.86,74.24547967]
[1736079843905,2.3386,213.88,213.83,2.339]
[1736079845199,2.3381,213.92,213.87,2.3386]
[1736079845406,7.85992143,213.95,213.84,2.66]
[1736079845608,4.3511,213.95,213.84,2.66]
[1736079846006,2.3386,213.88,213.84,2.66]
[1736079857221,2.3387,213.87,213.84,2.66]
[1736079858114,2.3387,213.87,213.83,2.3391]
[1736079858718,7.85992143,213.95,213.81,2.3392]
[1736079858719,2.3388,213.86,213.81,2.3392]
[1736079859020,2.66,213.91,213.81,2.3392]
[1736079859526,2.3389,213.85,213.81,2.3392]
[1736079860023,2.3389,213.85,213.82,2.3392]
[1736079865630,2.66,213.91,213.82,2.3392]
[1736079865831,2.3388,213.86,213.82,2.3392]
[1736079868438,2.3389,213.85,213.82,2.3392]
[1736079868836,2.66,213.91,213.79,2.66]
[1736079869036,2.66,213.91,213.81,2.3392]
[1736079871532,2.3388,213.86,213.81,2.3392]
[1736079872741,2.3389,213.85,213.81,2.3392]
[1736079873143,2.3389,213.85,213.77,7.1763279]
[1736079873144,2.66,213.91,213.77,9.8363279]
[1736079873346,2.339,213.84,213.8,2.3394]
[1736079875445,2.339,213.84,213.79,2.3395]
[1736079875640,2.339,213.84,213.77,7.1763279]
[1736079876244,2.339,213.84,213.8,2.3393]
[1736079885356,2.66,213.91,213.8,2.3393]
[1736079885656,2.3391,213.83,213.8,2.3393]
[1736079885855,2.66,213.91,213.81,2.3393]
[1736079886053,2.3388,213.86,213.77,7.1763279]
[1736079887859,2.3388,213.86,213.82,2.3391]
[1736079895169,2.3389,213.85,213.81,2.3393]
[1736079897966,2.339,213.84,213.8,2.3394]
[1736079900774,1.433,213.87,213.8,2.3394]
[1736079900973,2.3393,213.81,213.77,9.5159279]
[1736079901176,4.1039,213.86,213.77,7.1763279]
[1736079901575,2.3396,213.79,213.77,7.1763279]
[1736079902078,2.3396,213.79,213.75,2.3399]
[1736079906281,2.3396,213.79,213.76,2.3398]
[1736079907879,4.1039,213.86,213.76,2.3398]
[1736079908079,2.3394,213.8,213.76,2.3398]
[1736079912983,2.3395,213.79,213.76,2.3398]
[1736079919591,2.66,213.84,213.72,2.66]
[1736079919791,4.1039,213.86,213.72,2.66]
[1736079920288,2.3392,213.83,213.79,2.3395]
[1736079921592,2.3392,213.83,213.78,2.3396]
[1736079922491,1.4439,213.86,213.78,2.3396]
[1736079922695,2.3392,213.82,213.78,2.3396]
[1736079928402,2.3392,213.82,213.72,2.66]
[1736079928596,2.3392,213.82,213.77,2.3397]
[1736079930896,4.1039,213.86,213.72,2.66]
[1736079931692,4.1039,213.86,213.71,7.38453585]
[1736079931892,4.1039,213.86,213.72,2.66]
[1736079932613,4.1039,213.86,213.74,2.34]
[1736079932801,4.1039,213.86,213.72,2.66]
[1736079933500,4.1039,213.86,213.71,10.04453585]
[1736079933704,4.1039,213.86,213.73,2.3401]
[1736079935203,2.3396,213.79,213.73,2.3401]
[1736079936106,2.3396,213.79,213.74,2.34]
[1736079937907,4.1039,213.86,213.74,2.34]
[1736079938108,4.1039,213.86,213.72,2.3403]
[1736079938605,7.6141753,213.86,213.72,2.3403]
[1736079939408,2.3398,213.77,213.72,2.3403]
[1736079939596,57.59140487,213.81,213.71,7.38453585]
[1736079939800,2.8166,213.8,213.71,9.72493585]
[1736079940904,2.3398,213.77,213.71,9.72493585]
[1736079941709,2.3399,213.76,213.71,9.72493585]
[1736079943000,2.3399,213.76,213.71,7.38453585]
[1736079945712,2.34,213.75,213.71,7.38453585]
[1736079949416,2.8166,213.8,213.71,7.38453585]
[1736079949719,2.3403,213.73,213.69,2.66]
[1736079949909,1.4155,213.79,213.67,2.3408]
[1736079949910,1.4155,213.79,213.67,5.0008]
[1736079950514,1.4155,213.79,213.69,2.3405]
[1736079951414,2.34,213.75,213.69,2.3405]
[1736079953217,4.0755,213.79,213.69,2.3405]
[1736079953517,2.3401,213.74,213.69,2.3405]
[1736079956216,2.3403,213.72,213.67,83.99110861]
[1736079958917,4.0755,213.79,213.67,81.65040861]
[1736079959117,2.3401,213.74,213.67,81.65040861]
[1736079960117,2.3401,213.74,213.69,2.3406]
[1736079960312,2.3399,213.76,213.67,81.65040861]
[1736079960520,1.4155,213.79,213.67,81.65040861]
[1736079960716,1.4155,213.79,213.71,2.3404]
[1736079961124,1.4155,213.79,213.67,81.65040861]
[1736079961324,1.4155,213.79,213.7,2.3404]
[1736079961624,2.3401,213.74,213.7,2.3404]
[1736079961825,1.4155,213.79,213.68,2.3406]
[1736079962626,2.3402,213.73,213.68,2.3406]
[1736079962924,1.4155,213.79,213.68,2.3406]
[1736079963325,2.3399,213.76,213.68,2.3406]
[1736079963527,1.4155,213.79,213.68,2.3406]
[1736079963726,1.4155,213.79,213.67,83.99120861]
[1736079963920,2.3403,213.72,213.67,83.99120861]
[1736079964827,2.3403,213.72,213.68,2.3407]
[1736079966022,1.4155,213.79,213.67,78.99040861]
[1736079967529,2.3405,213.71,213.67,78.99040861]
[1736079974335,2.66,213.75,213.67,78.99040861]
[1736079974536,2.3406,213.7,213.67,78.99040861]
[1736079975030,1.4456,213.74,213.67,78.99040861]
[1736079975335,2.3407,213.68,213.63,2.3413]
[1736079980537,2.66,213.72,213.61,1.4857]
[1736079980739,2.3405,213.7,213.61,1.4857]
[1736079981134,2.3405,213.7,213.65,2.341]
[1736079981335,1.4206,213.73,213.65,2.341]
[1736079982342,1.4456,213.74,213.61,1.4857]
[1736079982637,14.66551957,213.8,213.61,1.5341]
[1736079982840,2.3398,213.77,213.71,2.3403]
[1736079983039,2.66,213.79,213.71,2.3403]
[1736079984445,2.3399,213.76,213.71,2.3403]
[1736079984743,2.66,213.79,213.68,2.66]
[1736079984942,2.66,213.79,213.7,2.3405]
[1736079986445,2.34,213.75,213.7,2.3405]
[1736079986837,4.2641,213.8,213.72,2.3402]
[1736079988044,2.3398,213.77,213.72,2.3402]